fUSD/lending_fUSD_20250530
["ID","MTS","AMOUNT","RATE_DAILY","PERIOD"]
[363100578,1748577055477,-420.0,0.00022191,2]
[363100579,1748577055486,-430.54051603,0.00022191,2]
[363100582,1748577143968,1679.02586898,0.00016,2]
[363100583,1748577143991,320.97413102,0.00016,2]
[363100584,1748577174554,1112.66,0.00019282,2]
[363100585,1748577180813,500.0,0.00018903,2]
[363100588,1748577190155,-179.41410678,0.00019999,2]
[363100589,1748577197446,910.83914587,0.00016,3]
[363100590,1748577197468,950.89574557,0.00016,3]
[363100594,1748577232914,600.49027199,0.00015,5]
[363100605,1748577433246,182.34,0.00016879,2]
[363100630,1748577793058,-155.19615827,0.00019652,2]
[363100631,1748577797678,-47.80384173,0.00019652,2]
[363100632,1748577880776,-154.48831231,0.00019999,2]
[363100633,1748577884354,-200.0,0.00019999,2]
[363100634,1748577886542,-66.09758091,0.00019999,2]
[363100635,1748577886568,-90.61064644,0.00019999,2]
[363100636,1748577892386,-200.0,0.00019999,2]
[363100639,1748577934930,188.45,0.00013699,2]
[363100641,1748578024440,251.76,0.00025,60]
[363100642,1748578028101,-209.38935356,0.00019999,2]
[363100643,1748578028122,-500.0,0.00019999,2]
[363100644,1748578028143,-188.45,0.00020187,2]
[363100645,1748578028165,-250.0,0.00020744,2]
[363100646,1748578028186,-256.94,0.00020956,2]
[363100647,1748578028208,-300.0,0.00020999,2]
[363100648,1748578028231,-9283.41728027,0.00021,2]
[363100649,1748578028252,-1000.0,0.00021028,2]
[363100650,1748578028273,-2738.91,0.00021066,2]
[363100651,1748578028295,-500.0,0.00021095,2]
[363100652,1748578028316,-712.0002308,0.00021139,2]
[363100653,1748578028338,-207.4,0.00021209,2]
[363100654,1748578028359,-166.6,0.00021284,2]
[363100655,1748578028379,-150.55,0.0002137,2]
[363100656,1748578028399,-150.55,0.0002137,2]
[363100657,1748578028422,-278.44,0.00021375,2]
[363100658,1748578028442,-150.0,0.000214,2]
[363100659,1748578028464,-150.0,0.000214,2]
[363100660,1748578028485,-150.0,0.00021402,7]
[363100661,1748578028508,-1200.0,0.0002143,2]
[363100662,1748578028531,-1112.66,0.00021546,2]
[363100663,1748578028552,-712.0002308,0.00021557,2]
[363100664,1748578028572,-150.55,0.000216,2]
[363100665,1748578028592,-712.0002308,0.00021695,2]
[363100666,1748578028616,-503.0,0.00021699,2]
[363100667,1748578028637,-150.0,0.000217,2]
[363100668,1748578028657,-150.0,0.000217,2]
[363100669,1748578028681,-353.87,0.000217,2]
[363100670,1748578028703,-150.0,0.000217,2]
[363100671,1748578028724,-150.62,0.000217,2]
[363100672,1748578028748,-179.3885,0.00021817,2]
[363100673,1748578028770,-166.8360045,0.00021817,2]
[363100674,1748578028795,-152.79352764,0.000219,2]
[363100675,1748578028816,-152.20915799,0.00021903,2]
[363100676,1748578028837,-1115.157653,0.00021903,2]
[363100677,1748578028857,-151.0,0.00021904,2]
[363100678,1748578028880,-500.0,0.00021916,2]
[363100679,1748578028901,-500.0,0.00021916,2]
[363100680,1748578028930,-500.0,0.00021916,2]
[363100681,1748578028954,-500.0,0.00021916,2]
[363100682,1748578028976,-500.0,0.00021916,2]
[363100683,1748578028998,-500.0,0.00021916,2]
[363100684,1748578029020,-500.0,0.00021916,2]
[363100685,1748578029045,-500.0,0.00021916,2]
[363100686,1748578029071,-500.0,0.00021916,2]
[363100687,1748578029095,-275.59510943,0.00021916,2]
[363100688,1748578029118,-36.26272234,0.00021916,2]
[363100696,1748578191193,1045.78,0.00019192,2]
[363100697,1748578203310,477.00753132,0.00018903,2]
[363100698,1748578203333,22.99246868,0.00018903,2]
[363100700,1748578231581,-186.66,0.00021036,2]
[363100701,1748578231591,-500.0,0.00021095,2]
[363100702,1748578231601,-306.2,0.00021096,2]
[363100703,1748578231610,-730.2153101,0.00021123,2]
[363100704,1748578231622,-90.4746899,0.00021123,2]
[363100705,1748578231632,-165.77,0.00021166,2]
[363100706,1748578231641,-683.57588204,0.00021233,2]
[363100707,1748578231653,-516.42411796,0.00021233,2]
[363100708,1748578231663,-3028.24398781,0.00021234,2]
[363100709,1748578231676,-5498.30601219,0.00021234,2]
[363100710,1748578231687,-300.0,0.00021455,2]
[363100711,1748578231696,-1045.78,0.00021456,2]
[363100712,1748578231706,-200.0,0.00021475,2]
[363100713,1748578231716,-194.90604395,0.00021717,2]
[363100714,1748578231726,-594.0997,0.00021817,2]
[363100715,1748578231735,-174.29037086,0.00021817,2]
[363100716,1748578231745,-166.8360045,0.00021817,2]
[363100717,1748578231756,-151.0,0.00021903,2]
[363100718,1748578231767,-340.86,0.00021907,2]
[363100719,1748578231777,-463.73727766,0.00021916,2]
[363100720,1748578231787,-500.0,0.00021916,2]
[363100721,1748578231797,-500.0,0.00021916,2]
[363100722,1748578231807,-500.0,0.00021916,2]
[363100723,1748578231816,-1502.159,0.00021916,2]
[363100724,1748578231826,-2806.78191318,0.00021916,2]
[363100725,1748578231835,-531.69832566,0.00021917,2]
[363100726,1748578231845,-420.0,0.00021917,2]
[363100727,1748578231854,-420.0,0.00021917,2]
[363100728,1748578231864,-424.54535185,0.00021917,2]
[363100729,1748578231874,-421.08264108,0.00021917,2]
[363100730,1748578231883,-422.74368506,0.00021917,2]
[363100731,1748578231893,-422.08760895,0.00021917,2]
[363100732,1748578231902,-420.0,0.00021917,2]
[363100733,1748578231912,-420.62740403,0.00021917,2]
[363100734,1748578231921,-476.06,0.00021917,2]
[363100735,1748578231931,-420.0,0.00021917,2]
[363100736,1748578231940,-420.0,0.00021917,2]
[363100737,1748578231950,-420.0,0.00021917,2]
[363100738,1748578231959,-420.0,0.00021917,2]
[363100739,1748578231968,-420.0,0.00021917,2]
[363100740,1748578231978,-420.0,0.00021917,2]
[363100741,1748578231988,-206.10774745,0.00021917,2]
[363100742,1748578231997,-420.0,0.00021917,2]
[363100743,1748578232006,-535.21,0.00021917,2]
[363100744,1748578232016,-420.0,0.00021917,2]
[363100745,1748578232025,-590.21,0.00021917,2]
[363100746,1748578232035,-992.97,0.00021917,2]
[363100747,1748578232045,-420.0,0.00021917,2]
[363100748,1748578232054,-420.0,0.00021917,2]
[363100750,1748578232063,-420.0,0.00021917,2]
[363100751,1748578232073,-643.69,0.00021917,2]
[363100752,1748578232083,-423.27,0.00021917,2]
[363100753,1748578232092,-420.0,0.00021917,2]
[363100754,1748578232101,-420.0,0.00021917,2]
[363100755,1748578232110,-502.47,0.00021917,2]
[363100756,1748578232120,-420.0,0.00021917,2]
[363100757,1748578232129,-420.0,0.00021917,2]
[363100758,1748578232139,-580.32,0.00021917,2]
[363100759,1748578232149,-420.0,0.00021917,2]
[363100760,1748578232158,-432.98,0.00021917,2]
[363100761,1748578232168,-592.44,0.00021917,2]
[363100762,1748578232177,-420.0,0.00021917,2]
[363100763,1748578232187,-430.73839157,0.00021917,2]
[363100764,1748578232196,-420.0,0.00021917,2]
[363100765,1748578232205,-1091.66,0.00021917,2]
[363100766,1748578232215,-420.0,0.00021917,2]
[363100767,1748578232224,-1081.87,0.00021917,2]
[363100768,1748578232235,-420.0,0.00021917,2]
[363100769,1748578232244,-420.0,0.00021917,2]
[363100770,1748578232254,-848.47,0.00021917,2]
[363100771,1748578232263,-684.12,0.00021917,2]
[363100772,1748578232273,-420.0,0.00021917,2]
[363100773,1748578232282,-589.93,0.00021917,2]
[363100774,1748578232291,-420.0,0.00021917,2]
[363100775,1748578232301,-420.0,0.00021917,2]
[363100776,1748578232311,-779.68,0.00021917,2]
[363100777,1748578232320,-420.0,0.00021917,2]
[363100778,1748578232330,-423.16,0.00021917,2]
[363100779,1748578232339,-420.0,0.00021917,2]
[363100780,1748578232348,-698.85,0.00021917,2]
[363100781,1748578232357,-1035.52,0.00021917,2]
[363100782,1748578232367,-438.29,0.00021917,2]
[363100783,1748578232377,-420.0,0.00021917,2]
[363100784,1748578232387,-524.95605246,0.00021917,2]
[363100785,1748578232396,-500.49,0.00021917,2]
[363100786,1748578232406,-685.26,0.00021917,2]
[363100787,1748578232415,-420.0,0.00021917,2]
[363100788,1748578232424,-207.32,0.00021917,2]
[363100789,1748578232434,-420.0,0.00021917,2]
[363100790,1748578232443,-496.82,0.00021917,2]
[363100791,1748578232453,-420.0,0.00021917,2]
[363100792,1748578232462,-420.0,0.00021917,2]
[363100793,1748578232471,-420.0,0.00021917,2]
[363100794,1748578232483,-1384.17,0.00021917,2]
[363100795,1748578232492,-1566.71,0.00021917,2]
[363100796,1748578232501,-420.0,0.00021917,2]
[363100797,1748578232511,-420.0,0.00021917,2]
[363100798,1748578232520,-420.0,0.00021917,2]
[363100799,1748578232529,-420.0,0.00021917,2]
[363100800,1748578232538,-420.0,0.00021917,2]
[363100801,1748578232548,-420.0,0.00021917,2]
[363100802,1748578232557,-604.82,0.00021917,2]
[363100803,1748578232567,-1545.87,0.00021917,2]
[363100804,1748578232576,-454.15,0.00021917,2]
[363100805,1748578232585,-428.85666844,0.00021917,2]
[363100806,1748578232595,-420.0,0.00021917,2]
[363100807,1748578232604,-1506.77,0.00021917,2]
[363100808,1748578232614,-420.0,0.00021917,2]
[363100809,1748578232623,-444.88,0.00021917,2]
[363100810,1748578232633,-509.51629064,0.00021917,2]
[363100811,1748578233206,-58.14370936,0.00021917,2]
[363100812,1748578233216,-420.0,0.00021917,2]
[363100813,1748578233226,-420.0,0.00021917,2]
[363100814,1748578233236,-420.0,0.00021917,2]
[363100815,1748578233245,-200.20876161,0.00021917,2]
[363100816,1748578237532,-219.79123839,0.00021917,2]
[363100817,1748578237541,-420.0,0.00021917,2]
[363100818,1748578237549,-360.20876161,0.00021917,2]
[363100819,1748578237561,-390.34123839,0.00021917,2]
[363100820,1748578237570,-102.16795877,0.00021917,2]
[363100821,1748578237582,-681.89753604,0.00021917,2]
[363100822,1748578237592,-243.30450519,0.00021917,2]
[363100823,1748578237602,-302.0147599,0.00021917,2]
[363100824,1748578237611,-420.0,0.00021917,2]
[363100825,1748578237620,-420.0,0.00021917,2]
[363100826,1748578237628,-420.0,0.00021917,2]
[363100827,1748578237637,-676.18,0.00021917,2]
[363100828,1748578237647,-420.0,0.00021917,2]
[363100829,1748578237661,-420.0,0.00021917,2]
[363100830,1748578237671,-420.0,0.00021917,2]
[363100831,1748578237684,-1.20291054,0.00021917,2]
[363100832,1748578237696,-418.79708946,0.00021917,2]
[363100833,1748578237705,-420.0,0.00021917,2]
[363100834,1748578237715,-432.71,0.00021917,2]
[363100835,1748578237726,-503.65,0.00021917,2]
[363100836,1748578237736,-494.23179395,0.00021917,2]
[363100837,1748578237745,-553.47,0.00021917,2]
[363100838,1748578237756,-420.0,0.00021917,2]
[363100839,1748578237766,-1263.37,0.00021917,2]
[363100840,1748578237776,-420.0,0.00021917,2]
[363100841,1748578237786,-420.0,0.00021917,2]
[363100842,1748578237795,-420.0,0.00021917,2]
[363100843,1748578237806,-420.0,0.00021917,2]
[363100844,1748578237815,-510.72,0.00021917,2]
[363100845,1748578237825,-420.0,0.00021917,2]
[363100846,1748578237834,-1232.0,0.00021917,2]
[363100847,1748578237845,-507.04,0.00021917,2]
[363100848,1748578237856,-420.0,0.00021917,2]
[363100849,1748578237865,-706.47,0.00021917,2]
[363100850,1748578237875,-561.31,0.00021917,2]
[363100851,1748578237884,-420.0,0.00021917,2]
[363100852,1748578237894,-420.0,0.00021917,2]
[363100853,1748578237903,-420.0,0.00021917,2]
[363100854,1748578237913,-420.0,0.00021917,2]
[363100855,1748578237923,-379.02760246,0.00021917,2]
[363100856,1748578237933,-420.0,0.00021917,2]
[363100857,1748578237943,-450.12,0.00021917,2]
[363100858,1748578237954,-473.08,0.00021917,2]
[363100859,1748578237963,-420.0,0.00021917,2]
[363100860,1748578237973,-420.0,0.00021917,2]
[363100861,1748578237983,-1083.68,0.00021917,2]
[363100862,1748578237992,-514.12,0.00021917,2]
[363100863,1748578238002,-1281.46,0.00021917,2]
[363100864,1748578238011,-1370.3,0.00021917,2]
[363100865,1748578238021,-420.0,0.00021917,2]
[363100866,1748578238031,-720.7,0.00021917,2]
[363100867,1748578238040,-991.59,0.00021917,2]
[363100868,1748578238050,-757.93166764,0.00021917,2]
[363100869,1748578238071,-45.32833236,0.00021917,2]
[363100870,1748578238081,-284.47866764,0.00021917,2]
[363100871,1748578238187,-135.52133236,0.00021917,2]
[363100872,1748578238197,-420.0,0.00021917,2]
[363100873,1748578238207,-420.0,0.00021917,2]
[363100874,1748578238216,-420.0,0.00021917,2]
[363100875,1748578238225,-539.38,0.00021917,2]
[363100876,1748578238236,-73.21465666,0.00021917,2]
[363100877,1748578238248,-280.407,0.00021917,2]
[363100878,1748578238261,-443.45834334,0.00021917,2]
[363100879,1748578238271,-222.78165666,0.00021917,2]
[363100880,1748578238291,-197.21834334,0.00021917,2]
[363100881,1748578238301,-227.66474204,0.00021917,2]
[363100882,1748578238313,-192.33525796,0.00021917,2]
[363100883,1748578238323,-420.0,0.00021917,2]
[363100884,1748578238333,-697.03,0.00021917,2]
[363100885,1748578238342,-420.0,0.00021917,2]
[363100886,1748578238352,-420.0,0.00021917,2]
[363100887,1748578238362,-1271.33,0.00021917,2]
[363100888,1748578238372,-1086.46,0.00021917,2]
[363100889,1748578238381,-480.46,0.00021917,2]
[363100890,1748578238390,-168.84674204,0.00021917,2]
[363100913,1748578239827,-300.0,0.00021916,2]
[363100915,1748578239837,-252.01325796,0.00021917,2]
[363100917,1748578239846,-300.0,0.00021917,2]
[363100919,1748578239857,-420.0,0.00021917,2]
[363100921,1748578239866,-420.0,0.00021917,2]
[363100923,1748578239875,-125.95255564,0.00021917,2]
[363100926,1748578239887,-1231.36744436,0.00021917,2]
[363100928,1748578239896,-571.65,0.00021917,2]
[363100929,1748578239906,-420.0,0.00021917,2]
[363100931,1748578239917,-420.0,0.00021917,2]
[363100933,1748578239927,-689.57,0.00021917,2]
[363100934,1748578239936,-909.81,0.00021917,2]
[363100936,1748578239945,-200.03597181,0.00021917,2]
[363100938,1748578239955,-420.0,0.00021917,2]
[363100940,1748578239964,-473.09,0.00021917,2]
[363100941,1748578239973,-420.0,0.00021917,2]
[363100942,1748578239982,-1006.66,0.00021917,2]
[363100943,1748578239992,-427.00296382,0.00021917,2]
[363100944,1748578240002,-450.53,0.00021917,2]
[363100945,1748578240011,-420.0,0.00021917,2]
[363100946,1748578240021,-420.0,0.00021917,2]
[363100947,1748578240030,-1033.14,0.00021917,2]
[363100948,1748578240040,-716.56,0.00021917,2]
[363100949,1748578240049,-420.0,0.00021917,2]
[363100951,1748578240059,-1511.77,0.00021917,2]
[363100953,1748578240068,-594.63,0.00021917,2]
[363100955,1748578240078,-1550.57,0.00021917,2]
[363100957,1748578240087,-420.0,0.00021917,2]
[363100959,1748578240096,-1925.21,0.00021917,2]
[363100961,1748578240106,-420.0,0.00021917,2]
[363100963,1748578240115,-431.34484005,0.00021917,2]
[363100965,1748578240125,-420.0,0.00021917,2]
[363100967,1748578240134,-389.96347123,0.00021917,2]
[363100969,1748578240146,-30.03652877,0.00021917,2]
[363100971,1748578240155,-542.42,0.00021917,2]
[363100973,1748578240165,-420.0,0.00021917,2]
[363100975,1748578240174,-545.37,0.00021917,2]
[363100977,1748578240185,-420.0,0.00021917,2]
[363100979,1748578240195,-1350.69,0.00021917,2]
[363100981,1748578240204,-448.91,0.00021917,2]
[363100982,1748578240214,-1195.18,0.00021917,2]
[363100984,1748578240223,-420.0,0.00021917,2]
[363100986,1748578240232,-420.0,0.00021917,2]
[363100988,1748578240241,-420.0,0.00021917,2]
[363100990,1748578240251,-324.66,0.00021917,2]
[363100992,1748578240261,-500.54,0.00021917,2]
[363100994,1748578240271,-575.59,0.00021917,2]
[363100996,1748578240280,-617.54,0.00021917,2]
[363100998,1748578240290,-420.0,0.00021917,2]
[363101000,1748578240299,-420.0,0.00021917,2]
[363101002,1748578240309,-420.0,0.00021917,2]
[363101003,1748578240318,-420.0,0.00021917,2]
[363101005,1748578240329,-420.0,0.00021917,2]
[363101007,1748578240339,-420.0,0.00021917,2]
[363101009,1748578240348,-752.16,0.00021917,2]
[363101011,1748578240358,-1702.03,0.00021917,2]
[363101013,1748578240368,-1405.2,0.00021917,2]
[363101015,1748578240379,-917.31,0.00021917,2]
[363101017,1748578240388,-420.0,0.00021917,2]
[363101019,1748578240398,-420.0,0.00021917,2]
[363101021,1748578240407,-420.0,0.00021917,2]
[363101023,1748578240417,-420.0,0.00021917,2]
[363101025,1748578240427,-420.0,0.00021917,2]
[363101027,1748578240436,-475.9866372,0.00021917,2]
[363101029,1748578240446,-324.63520759,0.00021917,2]
[363101031,1748578240455,-705.91,0.00021917,2]
[363101033,1748578240467,-420.0,0.00021917,2]
[363101035,1748578240477,-777.48,0.00021917,2]
[363101037,1748578240487,-445.32,0.00021917,2]
[363101039,1748578240497,-500.0,0.00021917,2]
[363101041,1748578240507,-684.7,0.00021917,2]
[363101043,1748578240516,-420.0,0.00021917,2]
[363101045,1748578240526,-420.0,0.00021917,2]
[363101047,1748578240537,-1813.98,0.00021917,2]
[363101049,1748578240546,-420.0,0.00021917,2]
[363101051,1748578240555,-420.0,0.00021917,2]
[363101053,1748578240565,-420.0,0.00021917,2]
[363101055,1748578240575,-639.29,0.00021917,2]
[363101057,1748578240585,-631.4,0.00021917,2]
[363101059,1748578240594,-1201.54,0.00021917,2]
[363101061,1748578240604,-420.0,0.00021917,2]
[363101063,1748578240614,-530.07,0.00021917,2]
[363101066,1748578240624,-510.06,0.00021917,2]
[363101068,1748578240634,-436.12,0.00021917,2]
[363101070,1748578240644,-420.0,0.00021917,2]
[363101072,1748578240653,-688.35,0.00021917,2]
[363101074,1748578240663,-420.0,0.00021917,2]
[363101075,1748578240673,-563.86,0.00021917,2]
[363101077,1748578240683,-877.14,0.00021917,2]
[363101079,1748578240695,-791.82,0.00021917,2]
[363101081,1748578240704,-549.76,0.00021917,2]
[363101083,1748578240715,-436.38328004,0.00021917,2]
[363101086,1748578240726,-420.0,0.00021917,2]
[363101088,1748578240736,-439.95,0.00021917,2]
[363101090,1748578240747,-420.0,0.00021917,2]
[363101092,1748578240757,-1223.54,0.00021917,2]
[363101094,1748578240769,-420.0,0.00021917,2]
[363101096,1748578240779,-420.0,0.00021917,2]
[363101098,1748578240789,-771.78,0.00021917,2]
[363101100,1748578240799,-197.57310573,0.00021917,2]
[363101103,1748578240815,-839.36689427,0.00021917,2]
[363101105,1748578240826,-420.0,0.00021917,2]
[363101107,1748578240836,-420.0,0.00021917,2]
[363101108,1748578240846,-1304.25,0.00021917,2]
[363101110,1748578240856,-420.0,0.00021917,2]
[363101112,1748578240866,-420.0,0.00021917,2]
[363101115,1748578240876,-566.19,0.00021917,2]
[363101117,1748578240886,-558.22,0.00021917,2]
[363101119,1748578240896,-431.28248738,0.00021917,2]
[363101121,1748578240905,-420.0,0.00021917,2]
[363101122,1748578240915,-862.16,0.00021917,2]
[363101124,1748578240925,-705.9,0.00021917,2]
[363101126,1748578240935,-420.0,0.00021917,2]
[363101128,1748578240944,-420.0,0.00021917,2]
[363101130,1748578240954,-568.17,0.00021917,2]
[363101132,1748578240963,-420.0,0.00021917,2]
[363101134,1748578240972,-420.0,0.00021917,2]
[363101136,1748578240981,-533.83,0.00021917,2]
[363101137,1748578240992,-420.0,0.00021917,2]
[363101138,1748578241001,-420.0,0.00021917,2]
[363101139,1748578241010,-736.23,0.00021917,2]
[363101140,1748578241019,-420.0,0.00021917,2]
[363101141,1748578241028,-1273.03,0.00021917,2]
[363101143,1748578241037,-522.2,0.00021917,2]
[363101145,1748578241047,-420.0,0.00021917,2]
[363101147,1748578241057,-420.0,0.00021917,2]
[363101149,1748578241066,-1487.99,0.00021917,2]
[363101151,1748578241076,-836.49,0.00021917,2]
[363101153,1748578241085,-1165.26,0.00021917,2]
[363101155,1748578241095,-420.0,0.00021917,2]
[363101157,1748578241104,-585.6,0.00021917,2]
[363101159,1748578241114,-420.0,0.00021917,2]
[363101161,1748578241123,-420.0,0.00021917,2]
[363101163,1748578241133,-2161.59,0.00021917,2]
[363101165,1748578241142,-420.0,0.00021917,2]
[363101167,1748578241151,-1527.6,0.00021917,2]
[363101169,1748578241161,-450.67,0.00021917,2]
[363101171,1748578241171,-445.16,0.00021917,2]
[363101173,1748578241181,-420.0,0.00021917,2]
[363101175,1748578241190,-420.0,0.00021917,2]
[363101177,1748578241200,-702.78,0.00021917,2]
[363101179,1748578241210,-420.0,0.00021917,2]
[363101181,1748578241220,-420.0,0.00021917,2]
[363101183,1748578241229,-420.0,0.00021917,2]
[363101185,1748578241242,-420.0,0.00021917,2]
[363101187,1748578241251,-420.0,0.00021917,2]
[363101189,1748578241261,-1167.79,0.00021917,2]
[363101191,1748578241270,-550.38,0.00021917,2]
[363101193,1748578241280,-420.0,0.00021917,2]
[363101195,1748578241289,-420.0,0.00021917,2]
[363101197,1748578241299,-975.21,0.00021917,2]
[363101202,1748578241308,-1384.78,0.00021917,2]
[363101203,1748578241538,-420.0,0.00021917,2]
[363101204,1748578241550,-412.30835441,0.00021917,2]
[363101205,1748578241562,-420.0,0.00021917,2]
[363101206,1748578241571,-585.88,0.00021917,2]
[363101207,1748578241581,-779.85,0.00021917,2]
[363101208,1748578241591,-420.0,0.00021917,2]
[363101209,1748578241601,-420.0,0.00021917,2]
[363101210,1748578241611,-978.84,0.00021917,2]
[363101211,1748578241620,-420.0,0.00021917,2]
[363101212,1748578241629,-1082.61,0.00021917,2]
[363101213,1748578241639,-420.0,0.00021917,2]
[363101214,1748578241649,-2694.5,0.00021917,2]
[363101215,1748578241658,-514.78,0.00021917,2]
[363101216,1748578241667,-1440.33,0.00021917,2]
[363101217,1748578241682,-648.77,0.00021917,2]
[363101218,1748578241692,-700.55,0.00021917,2]
[363101219,1748578241701,-1618.66,0.00021917,2]
[363101220,1748578241711,-420.0,0.00021917,2]
[363101221,1748578241722,-420.0,0.00021917,2]
[363101222,1748578241731,-420.0,0.00021917,2]
[363101223,1748578241744,-432.4624321,0.00021917,2]
[363101224,1748578241754,-420.0,0.00021917,2]
[363101225,1748578241763,-562.59,0.00021917,2]
[363101226,1748578241773,-420.0,0.00021917,2]
[363101227,1748578241782,-450.2,0.00021917,2]
[363101228,1748578241791,-504.91,0.00021917,2]
[363101229,1748578241801,-420.0,0.00021917,2]
[363101230,1748578241810,-420.0,0.00021917,2]
[363101231,1748578241819,-1723.89,0.00021917,2]
[363101232,1748578241829,-420.0,0.00021917,2]
[363101233,1748578241838,-614.63,0.00021917,2]
[363101234,1748578241848,-420.0,0.00021917,2]
[363101235,1748578241857,-420.0,0.00021917,2]
[363101236,1748578241867,-420.0,0.00021917,2]
[363101237,1748578241876,-420.0,0.00021917,2]
[363101238,1748578241886,-420.0,0.00021917,2]
[363101239,1748578241895,-380.72312109,0.00021917,2]
[363101240,1748578241910,-88.67687891,0.00021917,2]
[363101241,1748578241920,-357.0681211,0.00021917,2]
[363101242,1748578242068,-62.9318789,0.00021917,2]
[363101243,1748578242077,-40.27214446,0.00021917,2]
[363101244,1748578242102,-426.52374325,0.00021917,2]
[363101245,1748578242112,-614.72,0.00021917,2]
[363101246,1748578242121,-124.21223281,0.00021917,2]
[363101247,1748578242228,-377.46776719,0.00021917,2]
[363101248,1748578242239,-420.0,0.00021917,2]
[363101249,1748578242249,-420.0,0.00021917,2]
[363101250,1748578242258,-420.0,0.00021917,2]
[363101251,1748578242269,-420.0,0.00021917,2]
[363101252,1748578242279,-1275.37,0.00021917,2]
[363101253,1748578242289,-420.0,0.00021917,2]
[363101254,1748578242299,-501.46438773,0.00021917,2]
[363101255,1748578242308,-463.9,0.00021917,2]
[363101256,1748578242318,-1088.22,0.00021917,2]
[363101257,1748578242328,-630.26,0.00021917,2]
[363101258,1748578242337,-422.76,0.00021917,2]
[363101259,1748578242347,-420.0,0.00021917,2]
[363101260,1748578242356,-420.0,0.00021917,2]
[363101262,1748578242365,-1430.36,0.00021917,2]
[363101263,1748578242374,-420.0,0.00021917,2]
[363101264,1748578242383,-420.0,0.00021917,2]
[363101265,1748578242393,-420.0,0.00021917,2]
[363101266,1748578242403,-420.0,0.00021917,2]
[363101267,1748578242412,-420.0,0.00021917,2]
[363101268,1748578242422,-429.4,0.00021917,2]
[363101269,1748578242432,-420.0,0.00021917,2]
[363101270,1748578242442,-420.0,0.00021917,2]
[363101271,1748578242452,-553.24145152,0.00021917,2]
[363101272,1748578242462,-422.6094119,0.00021917,2]
[363101273,1748578242471,-500.0,0.00021917,2]
[363101274,1748578242481,-421.54,0.00021917,2]
[363101275,1748578242491,-548.09559931,0.00021917,2]
[363101276,1748578242501,-420.0,0.00021917,2]
[363101277,1748578242511,-420.0,0.00021917,2]
[363101278,1748578242520,-1009.96,0.00021917,2]
[363101279,1748578242530,-563.23,0.00021917,2]
[363101281,1748578242540,-1154.36,0.00021917,2]
[363101282,1748578242549,-420.0,0.00021917,2]
[363101284,1748578242558,-420.0,0.00021917,2]
[363101286,1748578242568,-420.0,0.00021917,2]
[363101288,1748578242577,-420.0,0.00021917,2]
[363101290,1748578242588,-420.0,0.00021917,2]
[363101291,1748578242597,-808.13,0.00021917,2]
[363101292,1748578242607,-423.15261725,0.00021917,2]
[363101293,1748578242620,-192.16738275,0.00021917,2]
[363101294,1748578242631,-420.0,0.00021917,2]
[363101295,1748578242641,-1890.1,0.00021917,2]
[363101296,1748578242652,-183.54188445,0.00021917,2]